Cogmind - Beta 13 *** ADVENTURER MODE // 2024.04.04 @ 12:15:54 Player: Codechine Result: Destroyed by D-53 Grenadier with Mini Grenade Launcher Performance ------------- Evolutions (0) 0 Regions Visited (4) 800 Robots Destroyed (33) 165 Value Destroyed (631) 631 Prototype IDs (3) 60 Alien Tech Used (0) 0 Bonus (-175) -175 TOTAL SCORE: 1481 Bonus ------- High Alert Combat Kills 4 Friendly Fire -179 Cogmind --------- Core Integrity 0/250 Matter 279/300 Energy 275/450 System Corruption 1% Temperature Cool (0) Movement Walking (120) Location -9/Mines Parts ------- > --- POWER (1) -------- Ion Engine > --- PROPULSION (2) --- Aluminum Leg Improved Aluminum Leg > --- UTILITY (2) ------ Large Battery > --- WEAPON (2) ------- Light Assault Rifle Katana > --- INVENTORY (5) ---- Heat Sink High-capacity Matter Pod (115) Sensor Array Peak State ------------ > --- POWER ------------ Ion Engine > --- PROPULSION ------- Aluminum Leg Improved Aluminum Leg > --- UTILITY ---------- Large Battery Experimental Sensor Array > --- WEAPON ----------- Light Assault Rifle Grenade Launcher > --- INVENTORY -------- Heat Sink High-capacity Matter Pod Sensor Array Katana [Rating: 16] Favorites ----------- Power Ion Engine Engine Ion Engine Propulsion Wheel Leg Aluminum Leg Wheel Wheel Utility Large Battery Device Experimental Sensor Array Storage Large Battery Weapon Light Assault Rifle Energy Gun Medium Laser Ballistic Gun Light Assault Rifle Launcher Grenade Launcher Slashing Weapon Katana Build | -11 -10 -10 -10 -9 ------- Run | Yrd Mat Min Exi Min Slots Evolved . | . . . . . Power . | . . . . . Propulsion . | . . . . . Utility . | . . . . . Weapon . | . . . . . Parts Attached 20 | 5 6 5 . 4 Power 5 | 1 1 1 . 2 Engine 5 | 1 1 1 . 2 Core . | . . . . . Reactor . | . . . . . Propulsion 4 | 2 . 1 . 1 Treads . | . . . . . Leg 2 | . . 1 . 1 Wheel 2 | 2 . . . . Hover . | . . . . . Flight . | . . . . . Utility 5 | . 4 1 . . Device 3 | . 2 1 . . Storage 2 | . 2 . . . Processor . | . . . . . Hackware . | . . . . . Protection . | . . . . . Artifact . | . . . . . Weapon 6 | 2 1 2 . 1 Energy Gun 3 | 2 1 . . . Energy Cannon . | . . . . . Ballistic Gun 1 | . . 1 . . Ballistic Cannon . | . . . . . Launcher 1 | . . 1 . . Special Weapon . | . . . . . Impact Weapon . | . . . . . Slashing Weapon 1 | . . . . 1 Piercing Weapon . | . . . . . Special Melee Weapon . | . . . . . Unidentified Prototypes 1 | . . 1 . . Parts Lost 9 | . 4 2 . 3 Power 3 | . 1 1 . 1 Propulsion 2 | . 2 . . . Utility 1 | . . . . 1 Weapon 3 | . 1 1 . 1 Highest Loss Streak 3 | . 3 2 . 3 To Critical Strikes . | . . . . . Average Slot Usage (%) 82 | . 82 71 85 98 Engine 13 | . 10 13 14 14 Leg 9 | . . 7 14 27 Wheel 5 | . 23 . . . Device 11 | . 11 4 14 14 Storage 15 | . 11 23 14 14 Energy Gun 7 | . 24 5 . . Ballistic Gun 9 | . . 8 14 14 Launcher 9 | . . 8 14 14 Naked Turns . | . . . . . Heaviest Build 16 | 7 14 16 13 13 Greatest Support 23 | 20 20 10 10 23 Greatest Overweight (x) 5 | . 3 5 1 1 Average Overweight (x) . | . . 2 1 . Largest Inventory Capacity 5 | 5 5 5 5 5 Average Capacity 5 | 5 5 5 5 5 Most Carried 5 | 5 5 5 4 5 Average Carried 3 | 4 3 3 3 4 Final Capacity 5 | 5 5 5 5 5 Final Carried 5 | 5 5 3 3 3 Class Distribution -------------------- 100% | Mutant Dominant Class ---------------- Mutant | -10/Materials Mutant | -10/Mines Mutant | -10/Exiles Mutant | -9/Mines Resources | -11 -10 -10 -10 -9 ----------- Run | Yrd Mat Min Exi Min Matter Collected 522 | 250 49 96 . 127 Remotely . | . . . . . Salvage Created 803 | 50 451 68 . 234 Parts 70 | 4 40 4 . 22 Haulers Intercepted . | . . . . . Recyclers Shooed . | . . . . . Parts Field Recycled . | . . . . . Retrieved Matter . | . . . . . Parts Self-Destructed . | . . . . . Prevented . | . . . . . Kills | -11 -10 -10 -10 -9 ------- Run | Yrd Mat Min Exi Min Combat Hostiles Destroyed 27 | 1 15 2 . 9 Guns 15 | 1 14 . . . AOE 12 | . 1 2 . 9 Classes Destroyed 6 | 1 2 . . 3 Tunneler 1 | . . . . 1 Recycler 1 | . . . . 1 Watcher 3 | . 3 . . . Swarmer 16 | . 9 . . 7 Grunt 10 | 1 6 2 . 1 Duelist 1 | . . . . 1 Thug 1 | . . . . 1 Best Kill Streak 6 | 1 3 2 . 6 Combat Bots Only 4 | 1 3 2 . 4 Max Kills in Single Turn 4 | 1 2 2 . 4 Gunslinging 1 | . 1 . . . Exploded 3 | . 1 2 . 3 Melee . | . . . . . Uniques/NPCs Destroyed . | . . . . . Combat | -11 -10 -10 -10 -9 -------- Run | Yrd Mat Min Exi Min Hostile Shots Fired 97 | 1 70 8 . 18 Missed 24 | . 19 1 . 4 Damage Taken 787 | 8 340 66 . 373 Core 280 | 8 63 39 . 170 Absorbed by Shields . | . . . . . Ignored by Resistances 238 | 2 112 20 . 104 Core Remaining (%) 96 | 96 . . . . Volleys Fired 55 | 1 44 3 . 7 Largest 2 | 2 2 2 . 2 Hottest 90 | 90 90 50 . 50 Shots Fired 91 | 2 73 4 . 12 Gun 85 | 2 73 3 . 7 Cannon . | . . . . . Launcher 6 | . . 1 . 5 Special . | . . . . . Kinetic 8 | . . 1 . 7 Thermal 47 | 1 44 2 . . Explosive 6 | . . 1 . 5 Electromagnetic 30 | 1 29 . . . Robot Hit Streak 15 | 1 9 12 . 15 Robot Miss Streak 4 | . 4 . . 3 Penetration Max . | . . . . . Secondary Targets 4 | . 4 . . . Max Gunslinging Chain 1 | . 1 . . . Shots Hit Robots 61 | 1 51 3 . 6 Core Hits 46 | 1 23 3 . 19 Critical Kills . | . . . . . Critical Parts Destroyed . | . . . . . Critical Strikes 4 | . 4 . . . Burn 4 | . 4 . . . Melee Attacks . | . . . . . Impact . | . . . . . Slashing . | . . . . . Piercing . | . . . . . Sneak Attacks . | . . . . . Combat Hostiles . | . . . . . Follow-up Attacks . | . . . . . Damage Inflicted 1523 | 15 672 104 . 732 Guns 719 | 15 645 24 . 35 Cannons . | . . . . . Explosions 804 | . 27 80 . 697 Melee . | . . . . . Ramming . | . . . . . Kinetic 35 | . . . . 35 Thermal 400 | . 376 24 . . Explosive 777 | . . 80 . 697 Electromagnetic 311 | 15 296 . . . Impact . | . . . . . Slashing . | . . . . . Piercing . | . . . . . Highest Corruption 1 | . 1 1 1 1 Average Corruption 1 | . 1 1 1 1 Corruption Purged . | . . . . . Corruption Blocked . | . . . . . Effects 21 | . 2 6 11 2 Message Errors 7 | . 1 2 3 1 Heat Flow Errors 5 | . . 1 4 . Energy Discharges 5 | . . 2 2 1 Data Loss (minor) 2 | . 1 . 1 . Data Loss (major) 1 | . . 1 . . Alerts 1 | . . . 1 . Overload Shots . | . . . . . Overflow Damage . | . . . . . Projectiles . | . . . . . Explosions . | . . . . . Melee . | . . . . . Knockbacks . | . . . . . Impact . | . . . . . Kinetic . | . . . . . Secondary . | . . . . . Self-Inflicted Damage 82 | . . . . 82 Shots 4 | . . . . 4 Rammed . | . . . . . Targets Rammed . | . . . . . Kicked . | . . . . . Crushed . | . . . . . Highest Temperature 242 | 30 208 242 209 16 Average Temperature 73 | 17 69 87 98 8 Received Heat Transfer 153 | 6 90 51 . 6 Siege Activations . | . . . . . Robots Corrupted . | . . . . . Combat Hostiles . | . . . . . Parts Fried . | . . . . . Impact Corruptions . | . . . . . Robots Melted . | . . . . . Combat Hostiles . | . . . . . Parts Melted 4 | . 4 . . . Heat Transferred 1456 | . 1382 74 . . Parts Sabotaged . | . . . . . Parts Stolen . | . . . . . Parts Stripped . | . . . . . Power Chain Reactions 1 | . 1 . . . Alert | -11 -10 -10 -10 -9 ------- Run | Yrd Mat Min Exi Min Peak Influence 498 | 20 498 153 . 285 Initial 113 | . 11 113 . . Average 148 | 16 277 82 . 164 Maximum Alert Level 2 | . 2 . . 1 Low Security (%) 72 | 100 28 100 . 82 Level 1 21 | . 54 . . 17 Level 2 6 | . 17 . . . Level 3 . | . . . . . Level 4 . | . . . . . Level 5 . | . . . . . High Security . | . . . . . Max Security . | . . . . . Squads Dispatched 2 | . 2 . . . Investigation 2 | . 2 . . . Extermination . | . . . . . Reinforcement . | . . . . . Assault . | . . . . . Garrison . | . . . . . Intercept . | . . . . . Searches Triggered . | . . . . . Construction Impeded . | . . . . . Haulers Reinforced . | . . . . . Active Scanning Responses . | . . . . . Cargo Convoy Interrupts . | . . . . . Stealth | -11 -10 -10 -10 -9 --------- Run | Yrd Mat Min Exi Min Distress Signals . | . . . . . Communications Jammed . | . . . . . Distress Signals . | . . . . . Times Spotted 41 | 1 28 2 . 10 Peak Tracking Total 6 | 1 6 2 . 4 Tactical Retreats 2 | . 2 . . . Traps | -11 -10 -10 -10 -9 ------- Run | Yrd Mat Min Exi Min Traps Triggered 3 | . 3 . . . Indirectly . | . . . . . Trap Hack Attempts . | . . . . . Triggered . | . . . . . Disarmed . | . . . . . Reprogrammed . | . . . . . Reused . | . . . . . Traps Extracted . | . . . . . Installed . | . . . . . Triggered . | . . . . . Machines | -11 -10 -10 -10 -9 ---------- Run | Yrd Mat Min Exi Min Machines Disabled 1 | . . . . 1 Max in Single Turn 1 | . . . . 1 Machines Repaired . | . . . . . Machines Dismantled . | . . . . . Machines Sabotaged . | . . . . . Overloaded Fab Kills . | . . . . . Hacking | -11 -10 -10 -10 -9 --------- Run | Yrd Mat Min Exi Min Machines Accessed 6 | . 5 . 1 . Terminals 5 | . 5 . . . Fabricators . | . . . . . Repair Stations . | . . . . . Recycling Units . | . . . . . Scanalyzers . | . . . . . Garrison Access . | . . . . . Total Hacks 36 | . 13 . 23 . Successful 30 | . 7 . 23 . Failed 6 | . 6 . . . Catastrophic 1 | . 1 . . . Database Lockouts . | . . . . . Manual . | . . . . . Terminals 13 | . 13 . . . Fabricators . | . . . . . Repair Stations . | . . . . . Recycling Units . | . . . . . Scanalyzers . | . . . . . Garrison Access . | . . . . . Terminal Hacks 30 | . 7 . 23 . Record 26 | . 3 . 23 . Prototype ID Bank 1 | . 1 . . . Dispatch Records 1 | . 1 . . . Hauler Manifests 1 | . 1 . . . Zone Layout 1 | . 1 . . . Fabricator Hacks . | . . . . . Repair Station Hacks . | . . . . . Recycling Unit Hacks . | . . . . . Scanalyzer . | . . . . . Garrison Access Hacks . | . . . . . Unauthorized Hacks . | . . . . . Terminals . | . . . . . Fabricators . | . . . . . Repair Stations . | . . . . . Recycling Units . | . . . . . Scanalyzers . | . . . . . Garrison Access . | . . . . . Data Cores Recovered . | . . . . . Used . | . . . . . Hacking Detections 4 | . 4 . . . Full Trace Events 1 | . 1 . . . Feedback Events . | . . . . . Feedback Blocked . | . . . . . Robot Schematics Acquired . | . . . . . Robots Built . | . . . . . Authchips . | . . . . . Time . | . . . . . Total Robot Build Rating . | . . . . . Part Schematics Acquired . | . . . . . Parts Built . | . . . . . Authchips . | . . . . . Time . | . . . . . Total Part Build Rating . | . . . . . Parts Repaired . | . . . . . Time . | . . . . . Parts Recycled . | . . . . . Recycled Matter . | . . . . . Retrieved Matter . | . . . . . Retrieved Components . | . . . . . Parts Scanalyzed . | . . . . . Part Schematics Acquired . | . . . . . Parts Damaged . | . . . . . Bothacking | -11 -10 -10 -10 -9 ------------ Run | Yrd Mat Min Exi Min Used RIF Installer . | . . . . . Robots Hacked . | . . . . . Non-combat . | . . . . . Combat . | . . . . . Robot Hacks Applied . | . . . . . Relay Couplers Released . | . . . . . Fabnet Peak Effective % . | . . . . . Robots Rewired . | . . . . . Allies Hacked . | . . . . . Hacks Repelled . | . . . . . Allies | -11 -10 -10 -10 -9 -------- Run | Yrd Mat Min Exi Min Total Allies 1 | . . . . 1 Largest Group 1 | . . . . 1 Highest-Rated Group 31 | . . . . 31 Highest-Rated Ally 31 | . . . . 31 Total Orders . | . . . . . Ally Attacks 1 | . . . . 1 Total Damage 22 | . . . . 22 Kills . | . . . . . Allies Corrupted . | . . . . . Allies Melted . | . . . . . Intel | -11 -10 -10 -10 -9 ------- Run | Yrd Mat Min Exi Min Robot Analysis Total . | . . . . . Derelict Logs Recovered 1 | . . 1 . . Drone Launches . | . . . . . Drone Recoveries . | . . . . . Exploration | -11 -10 -10 -10 -9 ------------- Run | Yrd Mat Min Exi Min Turns Passed 2956 | 340 647 614 1208 147 Spaces Moved 1749 | 156 571 299 632 91 Core 217 | 35 40 142 . . Treads . | . . . . . Legs 880 | . . 157 632 91 Wheels 652 | 121 531 . . . Hover . | . . . . . Flight . | . . . . . Fastest Speed 50 | 50 80 190 190 120 Average Speed 144 | 73 88 199 190 123 Slowest Speed 300 | 80 200 300 190 190 Overloaded Moves . | . . . . . Propulsion Burnouts . | . . . . . Robots Hopped . | . . . . . Cave-ins Triggered . | . . . . . Exploration Rate (%) 51 | 12 83 65 81 18 Regions Visited 4 Branch Regions 3 Pre-discovered Areas 2 | . . . 1 1 Known Exits Taken . | . . . . . Unknown Exits Taken 4 | 1 1 1 1 . Scrap Searched 1 | . . 1 . . Spaces Dug . | . . . . . Terrain Destroyed 60 | . 3 10 . 47 Melee . | . . . . . Projectile . | . . . . . AOE 60 | . 3 10 . 47 Terrain Rammed . | . . . . . Walls Destroyed . | . . . . . Machines Disabled . | . . . . . Actions | -11 -10 -10 -10 -9 --------- Run | Yrd Mat Min Exi Min Total 2088 | 379 641 314 640 114 Wait 238 | 208 13 5 3 9 Move 1745 | 155 570 298 631 91 Hop . | . . . . . Pick Up 21 | 10 5 2 1 3 Fast Attach . | . . . . . Attach 17 | 5 4 5 . 3 Detach 2 | . 1 1 . . Swap 3 | . 2 . . 1 Drop 3 | . 2 . 1 . Fire 55 | 1 44 3 . 7 Melee . | . . . . . Ram . | . . . . . Kick . | . . . . . Crush . | . . . . . Escape Stasis . | . . . . . Rewire 4 | . . . 4 . Trap . | . . . . . Miscellaneous . | . . . . . Route ------- -11/Scrapyard -10/Materials (discovered 2 exits: [*Mat] / [*Min]) -10/Mines (discovered 2 exits: [*Mat] / *Exi) -10/Exiles (discovered 2 exits: [*Min x2]) -9/Mines (discovered 1 exit: [*Mat]) History --------- Turn | Location | Event 2 | -11/Scrapyard | Met Revision 17 61 | -11/Scrapyard | Discovered new exit (range 8) 341 | -11/Scrapyard | Entered Materials 342 | -10/Materials | Build established: Mutant 790 | -10/Materials | Discovered new exit (range 16) 861 | -10/Materials | Discovered new exit (range 9) 924 | -10/Materials | Lost 3 parts (2n1w) 988 | -10/Materials | Entered Mines 1000 | -10/Mines | Learned 2 Materials zone layouts 1182 | -10/Mines | Discovered new exit (range 7) 1308 | -10/Mines | Deemed a non-threat by the Exiles lab entrance 1310 | -10/Mines | Discovered new exit (range 5) 1415 | -10/Mines | Found a damaged Exp. Sensor Array with a note attached 1419 | -10/Mines | Found Prototype Device 1421 | -10/Mines | Identified Exp. Sensor Array 1602 | -10/Mines | Entered Exiles 1644 | -10/Exiles | Discovered new exit (range 14) 1699 | -10/Exiles | Met 8R-AWN 1738 | -10/Exiles | Met EX-HEX 1849 | -10/Exiles | Met EX-DEC 1863 | -10/Exiles | Learned location of Zion (-7) 1942 | -10/Exiles | Visited The Gauntlet 2281 | -10/Exiles | Discovered new exit (range 11) 2810 | -10/Exiles | Entered Mines 2815 | -9/Mines | Escorted by a lone wolf Derelict 2839 | -9/Mines | Learned location of Storage (-7) 2852 | -9/Mines | Core integrity fell below 50% 2878 | -9/Mines | Discovered new exit (range 7) 2929 | -9/Mines | Assembled infested the area 2934 | -9/Mines | Assisted by a Guerilla fighting off Assembled 2954 | -9/Mines | Core integrity fell below 20% 2957 | -9/Mines | Destroyed by D-53 Grenadier with Mini Grenade Launcher Last Messages --------------- coming from, and they're closing on this area, come on!" Acquired 6 matter. The unstable cave ceiling collapses. Acquired 11 matter. K-01 Serf collects debris. K-01 Serf destroyed. U-05 Engineer lays Concrete. The unstable cave ceiling collapses. Lgt. Ion Engine destroyed. Grenade Launcher destroyed. U-05 Engineer lays Concrete. U-05 Engineer builds a Wall. Exp. Sensor Array destroyed. Bump into an enemy to attack with the active melee weapon. Even while active, melee weapons do not fire together with ranged weapons in the same volley. U-05 Engineer lays Concrete. [Achievement: First Step to Greatness] Map ----- +----------------------------------------------------+ | | | | | | | | | | | | | | | | | | | ????????????????????????????## #####????????? | | ????????###?????????????????# # #????????? | | ???????## #?????###??????### %= #????????? | | ???????# ##??# ##????## *! #??###???? | | ???????# ### #????# = #? #? | | ????????# < #????## = ## """#? | | ?????????# #??????## # """#? | | ?????????# #????####### ## ## """#? | | ?????????## ##????# ##### ## #?? #? | | ??????????## #####?????## % = #??? """?? | | ???????????# ############u#########???? """?? | | ???????????# ###??????????"""?? | | ???????????####### ;## ##??????? ?? | | ???????????????## d % # #?????????? | | ????????#####??# d % #?????????? | | ??####### #### #????????? | | ??# # @ [ #????????? | | ??# """ " [ #????????? | | ??# """ " =### # ##????????? | | ??# """ % ### #?# ####?????????? | | ??# * ##?## ##??# ##????????????? | | ??# ##???#######????# #?????????????? | | ??###########???????????????? #?????????????? | | ????????????????????????????? ?????????????? | | ??????????????????????????????##????????????? | | ????????????????????????????????????????????? | | ????????????????????????????????????????????? | | ????????????????????????????????????????????? | | ????????????????????????????????????????????? | | ????????????????????????????????????????????? | | ????????????????????????????????????????????? | | ????????????????????????????????????????????? | | ????????????????????????????????????????????? | | ????????????????????????????????????????????? | | ????????????????????????????????????????????? | | ????????????????????????????????????????????? | | ????????????????????????????????????????????? | | ????????????????????????????????????????????? | | ????????????????????????????????????????????? | | ????????????????????????????????????????????? | | ????????????????????????????????????????????? | +----------------------------------------------------+ Best States ------------- Heat Dissipation 35 Energy Generation 10 Energy Capacity 450 Matter Stores 340 Matter Capacity 500 Sight Range 16 Robot Scan Range 20 Terrain Scan Density 10 Resistance: KI 20 Resistance: TH 20 Resistance: EX 20 Resistance: EM 20 Resistance: I 20 Resistance: S 20 Resistance: P 20 Evasion (%) 55 Offensive Hacking 10 Item Schematics ----------------- None Robot Schematics ------------------ None Fabricated ------------ Nothing Alien Tech Used ----------------- None Achievements -------------- Backstab First Step to Greatness Librarian Shopping List Tourist Challenges ------------ None Game ------ Seed BarrageAlertDrive Manual? 0 Play Time 00:37:04 Cumulative 1.7 hours Start 2024.04.03 @ 18:05:49 End 2024.04.04 @ 12:15:54 Sessions 4 Manual Loads 0 Difficulty Adventurer Special Mode None Game No. 2 Rogue 0 Adventurer 2 Explorer 0 Win Type - Total 0 Types 0/0/0/0/0/0/0/0/0 Lore% 5 Gallery% 3 Achievement% 7 Wizard Run 0 Options --------- Layout 1 ASCII 0 Keyboard 0 Movement Mouse Keybinds 0 Fullscreen 1 Font 24/Smallcaps Map View 50x35 Zoom Use 0% Tactical HUD 0 Map Filters NONE Filters NONE Steam 1 RUN: a51ee999-acff-4e2f-a478-43013b6dbda4